fUST/lending_fUST_20240822
["ID","MTS","AMOUNT","RATE_DAILY","PERIOD"]
[335579468,1724339453790,-703.91,0.00019178,2]
[335579469,1724339453800,-504.24014889,0.00019178,2]
[335579470,1724339453810,-500.0,0.00019178,2]
[335579471,1724339453820,-975.92,0.00019178,2]
[335579472,1724339453830,-500.0,0.00019178,2]
[335579473,1724339453840,-500.0,0.00019178,2]
[335579474,1724339453851,-500.0,0.00019178,2]
[335579475,1724339453861,-725.67,0.00019178,2]
[335579476,1724339453871,-500.0,0.00019178,2]
[335579477,1724339453882,-500.0,0.00019178,2]
[335579478,1724339453891,-941.3,0.00019178,2]
[335579479,1724339453901,-500.0,0.00019178,2]
[335579480,1724339453911,-594.62,0.00019178,2]
[335579481,1724339453921,-500.0,0.00019178,2]
[335579482,1724339453931,-500.0,0.00019178,2]
[335579483,1724339453942,-458.79619817,0.00019178,2]
[335579484,1724339453952,-500.0,0.00019178,2]
[335579485,1724339453963,-2179.41,0.00019178,2]
[335579486,1724339453976,-521.78053309,0.00019178,2]
[335579487,1724339453987,-500.0,0.00019178,2]
[335579488,1724339453996,-500.0,0.00019178,2]
[335579489,1724339454009,-500.0,0.00019178,2]
[335579490,1724339454019,-500.0,0.00019178,2]
[335579491,1724339454029,-572.99,0.00019178,2]
[335579492,1724339454039,-500.0,0.00019178,2]
[335579493,1724339454049,-502.47041761,0.00019178,2]
[335579494,1724339454060,-500.0,0.00019178,2]
[335579495,1724339454070,-5331.32,0.00019178,2]
[335579496,1724339454080,-4235.92,0.00019178,2]
[335579497,1724339454089,-500.0,0.00019178,2]
[335579498,1724339454100,-566.83,0.00019178,2]
[335579499,1724339454111,-500.0,0.00019178,2]
[335579500,1724339454121,-500.0,0.00019178,2]
[335579501,1724339454131,-500.0,0.00019178,2]
[335579502,1724339454141,-783.99,0.00019178,2]
[335579503,1724339454151,-500.0,0.00019178,2]
[335579504,1724339454161,-500.0,0.00019178,2]
[335579505,1724339454172,-500.0,0.00019178,2]
[335579506,1724339454181,-500.0,0.00019178,2]
[335579507,1724339454191,-2414.51,0.00019178,2]
[335579508,1724339454202,-503.1947361,0.00019178,2]
[335579509,1724339454212,-500.0,0.00019178,2]
[335579510,1724339454222,-500.0,0.00019178,2]
[335579511,1724339454232,-500.0,0.00019178,2]
[335579512,1724339454242,-500.0,0.00019178,2]
[335579513,1724339454252,-500.0,0.00019178,2]
[335579514,1724339454262,-500.0,0.00019178,2]
[335579515,1724339454272,-500.0,0.00019178,2]
[335579516,1724339454282,-500.0,0.00019178,2]
[335579517,1724339454292,-500.0,0.00019178,2]
[335579518,1724339454303,-500.0,0.00019178,2]
[335579519,1724339454313,-500.0,0.00019178,2]
[335579520,1724339454323,-1660.58,0.00019178,2]
[335579521,1724339454332,-500.0,0.00019178,2]
[335579522,1724339454341,-500.0,0.00019178,2]
[335579523,1724339454352,-584.34,0.00019178,2]
[335579524,1724339454362,-500.0,0.00019178,2]
[335579525,1724339454372,-500.0,0.00019178,2]
[335579526,1724339454382,-285.42518976,0.00019178,2]
[335579527,1724339454392,-2258.84,0.00019178,2]
[335579528,1724339454403,-1526.82,0.00019178,2]
[335579529,1724339454413,-500.0,0.00019178,2]
[335579530,1724339454423,-500.0,0.00019178,2]
[335579531,1724339454433,-500.0,0.00019178,2]
[335579532,1724339454443,-500.0,0.00019178,2]
[335579533,1724339454454,-500.0,0.00019178,2]
[335579534,1724339454464,-500.0,0.00019178,2]
[335579535,1724339454474,-500.0,0.00019178,2]
[335579536,1724339454484,-1119.82,0.00019178,2]
[335579537,1724339454705,-500.0,0.00019178,2]
[335579538,1724339454715,-500.0,0.00019178,2]
[335579539,1724339454725,-500.0,0.00019178,2]
[335579540,1724339454735,-599.87,0.00019178,2]
[335579541,1724339454745,-500.0,0.00019178,2]
[335579542,1724339454755,-500.0,0.00019178,2]
[335579543,1724339454765,-500.0,0.00019178,2]
[335579544,1724339454775,-680.9,0.00019178,2]
[335579545,1724339454785,-500.0,0.00019178,2]
[335579546,1724339454796,-595.25,0.00019178,2]
[335579547,1724339454806,-500.0,0.00019178,2]
[335579548,1724339454816,-441.34901224,0.00019178,2]
[335579549,1724339454826,-500.0,0.00019178,2]
[335579550,1724339454836,-788.88,0.00019178,2]
[335579551,1724339454846,-588.02,0.00019178,2]
[335579552,1724339454856,-500.0,0.00019178,2]
[335579553,1724339454867,-500.0,0.00019178,2]
[335579554,1724339454877,-857.06,0.00019178,2]
[335579555,1724339454887,-621.96,0.00019178,2]
[335579556,1724339454898,-712.22,0.00019178,2]
[335579557,1724339454908,-5809.49,0.00019178,2]
[335579558,1724339454918,-832.86,0.00019178,2]
[335579559,1724339454928,-500.0,0.00019178,2]
[335579560,1724339454939,-500.0,0.00019178,2]
[335579561,1724339454949,-500.0,0.00019178,2]
[335579562,1724339454959,-500.0,0.00019178,2]
[335579563,1724339454969,-523.81618696,0.00019178,2]
[335579564,1724339454982,-500.0,0.00019178,2]
[335579565,1724339454992,-500.0,0.00019178,2]
[335579566,1724339455002,-1029.54,0.00019178,2]
[335579567,1724339455013,-500.0,0.00019178,2]
[335579568,1724339455024,-584.49,0.00019178,2]
[335579569,1724339455033,-577.9,0.00019178,2]
[335579570,1724339455042,-500.0,0.00019178,2]
[335579571,1724339455054,-614.54,0.00019178,2]
[335579572,1724339455065,-967.72,0.00019178,2]
[335579573,1724339455074,-500.0,0.00019178,2]
[335579574,1724339455084,-673.61,0.00019178,2]
[335579575,1724339455093,-500.0,0.00019178,2]
[335579576,1724339455103,-500.0,0.00019178,2]
[335579577,1724339455113,-500.0,0.00019178,2]
[335579578,1724339455122,-564.78,0.00019178,2]
[335579579,1724339455132,-643.92652709,0.00019178,2]
[335579580,1724339455142,-778.36,0.00019178,2]
[335579581,1724339455152,-500.0,0.00019178,2]
[335579582,1724339455172,-1091.36,0.00019178,2]
[335579583,1724339455185,-500.0,0.00019178,2]
[335579584,1724339455197,-500.0,0.00019178,2]
[335579585,1724339455209,-500.0,0.00019178,2]
[335579586,1724339455220,-500.0,0.00019178,2]
[335579587,1724339455231,-500.0,0.00019178,2]
[335579588,1724339455242,-1144.1,0.00019178,2]
[335579589,1724339455254,-500.0,0.00019178,2]
[335579590,1724339455265,-500.0,0.00019178,2]
[335579591,1724339455275,-1144.1,0.00019178,2]
[335579592,1724339455286,-1144.1,0.00019178,2]
[335579593,1724339455297,-500.0,0.00019178,2]
[335579594,1724339455309,-1144.1,0.00019178,2]
[335579595,1724339455319,-1144.1,0.00019178,2]
[335579596,1724339455332,-500.0,0.00019178,2]
[335579597,1724339455345,-1144.1,0.00019178,2]
[335579598,1724339455356,-1144.1,0.00019178,2]
[335579599,1724339455367,-1144.1,0.00019178,2]
[335579600,1724339455378,-1144.1,0.00019178,2]
[335579601,1724339455388,-1144.1,0.00019178,2]
[335579602,1724339455399,-500.0,0.00019178,2]
[335579603,1724339455410,-1144.1,0.00019178,2]
[335579604,1724339455420,-271.73742687,0.00019178,2]
[335579605,1724339455431,-1144.1,0.00019178,2]
[335579606,1724339455441,-1144.1,0.00019178,2]
[335579607,1724339455451,-500.0,0.00019178,2]
[335579608,1724339455461,-1144.1,0.00019178,2]
[335579609,1724339455472,-1144.1,0.00019178,2]
[335579610,1724339455482,-1144.1,0.00019178,2]
[335579611,1724339455493,-1095.73,0.00019178,2]
[335579612,1724339455503,-1144.1,0.00019178,2]
[335579613,1724339455513,-1144.1,0.00019178,2]
[335579614,1724339455523,-500.0,0.00019178,2]
[335579615,1724339455533,-1144.1,0.00019178,2]
[335579616,1724339455543,-1144.1,0.00019178,2]
[335579617,1724339455553,-1210.45,0.00019178,2]
[335579618,1724339455563,-500.0,0.00019178,2]
[335579619,1724339455574,-1144.1,0.00019178,2]
[335579620,1724339455584,-1144.1,0.00019178,2]
[335579621,1724339455594,-1144.1,0.00019178,2]
[335579622,1724339455604,-1144.18434807,0.00019178,2]
[335579623,1724339455615,-500.0,0.00019178,2]
[335579624,1724339455625,-500.0,0.00019178,2]
[335579625,1724339455634,-2512.15,0.00019178,2]
[335579626,1724339455644,-500.0,0.00019178,2]
[335579627,1724339455654,-627.5,0.00019178,2]
[335579628,1724339455664,-867.29,0.00019178,2]
[335579629,1724339455674,-4673.84,0.00019178,2]
[335579630,1724339455683,-500.0,0.00019178,2]
[335579631,1724339455693,-948.0,0.00019178,2]
[335579632,1724339455704,-500.0,0.00019178,2]
[335579633,1724339455714,-500.0,0.00019178,2]
[335579634,1724339455725,-690.72,0.00019178,2]
[335579635,1724339455734,-500.0,0.00019178,2]
[335579636,1724339455744,-500.0,0.00019178,2]
[335579637,1724339455753,-1247.76,0.00019178,2]
[335579638,1724339455763,-500.0,0.00019178,2]
[335579639,1724339455778,-500.0,0.00019178,2]
[335579640,1724339455788,-500.0,0.00019178,2]
[335579641,1724339455798,-297.00940578,0.00019178,2]
[335579642,1724339455808,-500.0,0.00019178,2]
[335579643,1724339455819,-500.0,0.00019178,2]
[335579644,1724339455829,-500.0,0.00019178,2]
[335579645,1724339455839,-2682.64,0.00019178,2]
[335579646,1724339455850,-500.0,0.00019178,2]
[335579647,1724339455860,-1635.27,0.00019178,2]
[335579648,1724339455870,-697.49,0.00019178,2]
[335579649,1724339455881,-500.0,0.00019178,2]
[335579650,1724339455891,-500.0,0.00019178,2]
[335579651,1724339455901,-708.45,0.00019178,2]
[335579652,1724339455911,-500.61533483,0.00019178,2]
[335579653,1724339455923,-2663.2,0.00019178,2]
[335579654,1724339455933,-500.0,0.00019178,2]
[335579655,1724339455943,-500.0,0.00019178,2]
[335579656,1724339455954,-500.0,0.00019178,2]
[335579657,1724339455965,-500.0,0.00019178,2]
[335579658,1724339455979,-500.0,0.00019178,2]
[335579659,1724339455990,-500.0,0.00019178,2]
[335579660,1724339456000,-500.0,0.00019178,2]
[335579661,1724339456010,-500.0,0.00019178,2]
[335579662,1724339456021,-500.0,0.00019178,2]
[335579663,1724339456031,-500.0,0.00019178,2]
[335579664,1724339456041,-1130.78,0.00019178,2]
[335579665,1724339456051,-3229.35,0.00019178,2]
[335579666,1724339456062,-3801.51,0.00019178,2]
[335579667,1724339456072,-500.0,0.00019178,2]
[335579668,1724339456082,-3801.51,0.00019178,2]
[335579669,1724339456092,-500.0,0.00019178,2]
[335579670,1724339456103,-998.77,0.00019178,2]
[335579671,1724339456113,-3801.51,0.00019178,2]
[335579672,1724339456124,-500.0,0.00019178,2]
[335579673,1724339456134,-3801.51,0.00019178,2]
[335579674,1724339456143,-3801.51,0.00019178,2]
[335579675,1724339456154,-3801.51,0.00019178,2]
[335579676,1724339456163,-3801.51,0.00019178,2]
[335579677,1724339456173,-3801.51,0.00019178,2]
[335579678,1724339456183,-3801.51,0.00019178,2]
[335579679,1724339456193,-3801.51,0.00019178,2]
[335579680,1724339456203,-3801.51,0.00019178,2]
[335579681,1724339456217,-3801.51,0.00019178,2]
[335579682,1724339456228,-3801.51,0.00019178,2]
[335579683,1724339456238,-401.24309291,0.00019178,2]
[335579684,1724339456248,-3801.51,0.00019178,2]
[335579685,1724339456259,-164.3299131,0.00019178,2]
[335579686,1724339456269,-251.0,0.00019178,2]
[335579687,1724339456279,-164.329904,0.00019178,2]
[335579688,1724339456289,-551.0,0.000192,2]
[335579689,1724339456299,-500.0,0.000192,2]
[335579690,1724339456309,-1999.16,0.000192,2]
[335579691,1724339456320,-150.112233,0.000192,2]
[335579692,1724339456330,-150.112233,0.000192,2]
[335579693,1724339456340,-2588.07,0.000192,2]
[335579694,1724339456351,-2149.31,0.000192,2]
[335579695,1724339456360,-500.0,0.00019486,7]
[335579696,1724339456370,-500.0,0.00019486,7]
[335579697,1724339456380,-500.7,0.00019621,2]
[335579698,1724339456390,-700.49678105,0.00019721,2]
[335579699,1724339456399,-1000.0,0.00019721,2]
[335579700,1724339456409,-400.0,0.00019721,2]
[335579701,1724339456419,-301.96319729,0.00019721,2]
[335579702,1724339456430,-500.0,0.00019725,7]
[335579703,1724339456440,-500.0,0.00019725,7]
[335579704,1724339456450,-500.0,0.00019725,7]
[335579705,1724339456461,-500.0,0.00019725,7]
[335579706,1724339456471,-413.05296044,0.00019725,7]
[335579707,1724339456481,-500.0,0.00019725,7]
[335579708,1724339456491,-500.0,0.00019725,7]
[335579709,1724339456502,-500.0,0.00019725,7]
[335579710,1724339456513,-500.0,0.00019725,7]
[335579711,1724339456526,-500.0,0.00019725,7]
[335579712,1724339456538,-500.0,0.00019725,7]
[335579713,1724339456549,-164.30701068,0.00019726,7]
[335579714,1724339456560,-500.0,0.00019726,7]
[335579715,1724339456572,-500.0,0.00019726,7]
[335579716,1724339456581,-629.36,0.00019726,7]
[335579717,1724339456591,-500.0,0.00019726,2]
[335579718,1724339456601,-987.26,0.00019726,7]
[335579719,1724339456611,-500.0,0.00019726,7]
[335579720,1724339456621,-500.0,0.00019726,7]
[335579721,1724339456635,-500.0,0.00019726,7]
[335579722,1724339456646,-592.31,0.00019726,7]
[335579723,1724339456657,-599.77,0.00019726,7]
[335579724,1724339456668,-418.26348855,0.00019726,7]
[335579725,1724339456678,-672.96,0.00019726,7]
[335579726,1724339456690,-504.91,0.00019726,7]
[335579727,1724339456700,-464.63883686,0.00019726,7]
[335579728,1724339456710,-500.0,0.00019726,2]
[335579729,1724339456723,-500.0,0.00019726,7]
[335579730,1724339456733,-500.0,0.00019726,7]
[335579731,1724339456743,-500.0,0.00019726,7]
[335579732,1724339456755,-500.0,0.00019726,7]
[335579733,1724339456764,-500.0,0.00019726,7]
[335579734,1724339456774,-500.0,0.00019726,7]
[335579735,1724339456785,-500.0,0.00019726,7]
[335579736,1724339456794,-500.0,0.00019726,7]
[335579737,1724339456806,-500.0,0.00019726,7]
[335579738,1724339456818,-628.36,0.00019726,7]
[335579739,1724339456830,-500.0,0.00019726,7]
[335579740,1724339456842,-500.0,0.00019726,7]
[335579741,1724339456853,-500.0,0.00019726,7]
[335579742,1724339456863,-500.0,0.00019726,7]
[335579743,1724339456873,-2197.46,0.00019726,7]
[335579744,1724339456883,-500.0,0.00019726,7]
[335579745,1724339456893,-500.0,0.00019726,7]
[335579746,1724339456903,-500.0,0.00019726,7]
[335579747,1724339456913,-500.0,0.00019726,7]
[335579748,1724339456923,-500.0,0.00019726,7]
[335579749,1724339456934,-500.0,0.00019726,7]
[335579750,1724339456944,-500.0,0.00019726,7]
[335579751,1724339456954,-500.0,0.00019726,7]
[335579752,1724339456964,-500.0,0.00019726,7]
[335579753,1724339456976,-508.06208762,0.00019726,7]
[335579754,1724339456987,-603.66,0.00019726,7]
[335579755,1724339456999,-500.0,0.00019726,7]
[335579756,1724339457019,-500.0,0.00019726,7]
[335579757,1724339457030,-540.21077798,0.00019726,7]
[335579758,1724339457040,-500.0,0.00019726,7]
[335579759,1724339457051,-500.0,0.00019726,7]
[335579760,1724339457062,-515.11426624,0.00019726,7]
[335579761,1724339457075,-500.0,0.00019726,7]
[335579762,1724339457085,-500.0,0.00019726,7]
[335579763,1724339457095,-513.62211717,0.00019726,7]
[335579764,1724339457104,-500.0,0.00019726,7]
[335579765,1724339457114,-500.0,0.00019726,7]
[335579766,1724339457134,-500.0,0.00019726,7]
[335579767,1724339457144,-500.0,0.00019726,7]
[335579768,1724339457154,-500.0,0.00019726,7]
[335579769,1724339457166,-500.0,0.00019726,7]
[335579770,1724339457300,-500.0,0.00019726,7]
[335579771,1724339457310,-500.0,0.00019726,7]
[335579772,1724339457319,-500.0,0.00019726,7]
[335579773,1724339457329,-500.0,0.00019726,7]
[335579774,1724339457338,-500.0,0.00019726,7]
[335579775,1724339457347,-500.0,0.00019726,7]
[335579776,1724339457357,-500.0,0.00019726,7]
[335579777,1724339457366,-500.0,0.00019726,7]
[335579778,1724339457376,-500.0,0.00019726,7]
[335579779,1724339457385,-500.0,0.00019726,7]
[335579780,1724339457395,-500.0,0.00019726,7]
[335579781,1724339457404,-2020.97,0.00019726,7]
[335579782,1724339457413,-500.0,0.00019726,7]
[335579783,1724339457422,-500.0,0.00019726,7]
[335579784,1724339457432,-500.0,0.00019726,7]
[335579785,1724339457441,-500.0,0.00019726,7]
[335579786,1724339457450,-308.15518386,0.00019726,7]
[335579787,1724339457459,-500.0,0.00019726,7]
[335579788,1724339457469,-670.05,0.00019726,7]
[335579789,1724339457478,-517.76449491,0.00019726,7]
[335579790,1724339457487,-500.0,0.00019726,7]
[335579791,1724339457496,-500.0,0.00019726,7]
[335579792,1724339457506,-500.0,0.00019726,7]
[335579793,1724339457515,-500.0,0.00019726,7]
[335579794,1724339457529,-522.89,0.00019726,7]
[335579795,1724339457538,-500.0,0.00019726,7]
[335579796,1724339457546,-500.0,0.00019726,7]
[335579797,1724339457556,-500.0,0.00019726,7]
[335579798,1724339457565,-927.27,0.00019726,7]
[335579799,1724339457574,-500.0,0.00019726,7]
[335579800,1724339457583,-500.0,0.00019726,7]
[335579801,1724339457592,-500.0,0.00019726,7]
[335579802,1724339457602,-500.0,0.00019726,7]
[335579803,1724339457611,-500.0,0.00019726,7]
[335579804,1724339457621,-719.46,0.00019726,7]
[335579805,1724339457630,-500.0,0.00019726,7]
[335579806,1724339457639,-500.0,0.00019726,7]
[335579807,1724339457648,-500.0,0.00019726,7]
[335579808,1724339457657,-2364.22,0.00019726,7]
[335579809,1724339457666,-253.11658561,0.00019726,7]
[335579810,1724339457675,-500.0,0.00019726,7]
[335579811,1724339457685,-500.0,0.00019726,7]
[335579812,1724339457694,-605.15,0.00019726,2]
[335579813,1724339457704,-500.0,0.00019726,7]
[335579814,1724339457713,-640.98,0.00019726,7]
[335579815,1724339457722,-500.0,0.00019726,7]
[335579816,1724339457733,-638.49,0.00019726,7]
[335579817,1724339457743,-500.0,0.00019726,7]
[335579818,1724339457752,-500.0,0.00019726,7]
[335579819,1724339457762,-500.0,0.00019726,7]
[335579820,1724339457772,-501.45,0.00019726,7]
[335579821,1724339457781,-500.0,0.00019726,7]
[335579822,1724339457791,-500.0,0.00019726,7]
[335579823,1724339457801,-500.0,0.00019726,7]
[335579824,1724339457811,-645.17,0.00019726,7]
[335579825,1724339457820,-200.0,0.00019726,7]
[335579826,1724339457830,-513.97,0.00019726,7]
[335579827,1724339457839,-500.0,0.00019726,7]
[335579828,1724339457849,-1100.96,0.00019726,7]
[335579829,1724339457858,-283.03502968,0.00019726,7]
[335579830,1724339457868,-500.0,0.00019726,7]
[335579831,1724339457878,-500.0,0.00019726,7]
[335579832,1724339457887,-564.35,0.00019726,7]
[335579833,1724339457897,-500.0,0.00019726,7]
[335579834,1724339457907,-500.0,0.00019726,7]
[335579835,1724339457916,-500.0,0.00019726,7]
[335579836,1724339457926,-500.0,0.00019726,7]
[335579837,1724339457936,-500.0,0.00019726,7]
[335579838,1724339457946,-500.0,0.00019726,7]
[335579839,1724339457955,-500.0,0.00019726,7]
[335579840,1724339457965,-339.12458627,0.00019726,7]
[335579841,1724339457983,-500.0,0.00019726,7]
[335579842,1724339457993,-500.0,0.00019726,7]
[335579843,1724339458002,-500.0,0.00019726,7]
[335579844,1724339458012,-500.0,0.00019726,7]
[335579845,1724339458022,-500.0,0.00019726,7]
[335579846,1724339458032,-460.7176342,0.00019726,7]
[335579847,1724339458041,-500.0,0.00019726,7]
[335579848,1724339458052,-500.0,0.00019726,7]
[335579849,1724339458061,-500.0,0.00019726,7]
[335579850,1724339458071,-295.14,0.00019726,7]
[335579851,1724339458080,-500.0,0.00019726,7]
[335579852,1724339458090,-500.0,0.00019726,7]
[335579853,1724339458099,-500.0,0.00019726,7]
[335579854,1724339458109,-500.0,0.00019726,7]
[335579855,1724339458118,-500.0,0.00019726,7]
[335579856,1724339458127,-413.02,0.00019726,7]
[335579857,1724339458137,-789.21,0.00019726,7]
[335579858,1724339458146,-500.0,0.00019726,7]
[335579859,1724339458155,-500.0,0.00019726,7]
[335579860,1724339458164,-497.99,0.00019726,7]
[335579861,1724339458173,-1165.78,0.00019726,7]
[335579862,1724339458183,-500.0,0.00019726,7]
[335579863,1724339458193,-500.0,0.00019726,7]
[335579864,1724339458202,-500.0,0.00019726,7]
[335579865,1724339458211,-500.0,0.00019726,7]
[335579866,1724339458221,-509.63686053,0.00019726,7]
[335579867,1724339458230,-1829.34,0.00019726,7]
[335579868,1724339458240,-593.85,0.00019726,7]
[335579869,1724339458249,-500.0,0.00019726,7]
[335579870,1724339458259,-500.0,0.00019726,7]
[335579871,1724339458269,-770.75,0.00019726,7]
[335579872,1724339458277,-500.0,0.00019726,7]
[335579873,1724339458287,-500.0,0.00019726,7]
[335579874,1724339458296,-500.0,0.00019726,7]
[335579875,1724339458306,-500.0,0.00019726,7]
[335579876,1724339458315,-500.0,0.00019726,7]
[335579877,1724339458324,-677.91,0.00019726,7]
[335579878,1724339458333,-500.0,0.00019726,7]
[335579879,1724339458343,-500.0,0.00019726,7]
[335579880,1724339458352,-500.0,0.00019726,7]
[335579881,1724339458361,-508.61,0.00019726,7]
[335579882,1724339458370,-500.0,0.00019726,7]
[335579883,1724339458379,-500.0,0.00019726,7]
[335579884,1724339458389,-808.41,0.00019726,7]
[335579885,1724339458398,-1136.83,0.00019726,7]
[335579886,1724339458408,-500.0,0.00019726,7]
[335579887,1724339458417,-500.0,0.00019726,2]
[335579888,1724339458426,-500.0,0.00019726,7]
[335579889,1724339458435,-500.0,0.00019726,7]
[335579890,1724339458444,-1173.73,0.00019726,7]
[335579891,1724339458454,-500.0,0.00019726,7]
[335579892,1724339458464,-500.0,0.00019726,7]
[335579893,1724339458473,-957.36,0.00019726,7]
[335579894,1724339458482,-500.0,0.00019726,7]
[335579895,1724339458492,-500.0,0.00019726,7]
[335579896,1724339458501,-558.68,0.00019726,7]
[335579897,1724339458511,-500.0,0.00019726,7]
[335579898,1724339458520,-506.08,0.00019726,7]
[335579899,1724339458530,-500.0,0.00019726,7]
[335579900,1724339458539,-500.0,0.00019726,7]
[335579901,1724339458548,-949.84,0.00019726,7]
[335579902,1724339458557,-689.06,0.00019726,7]
[335579903,1724339458567,-500.0,0.00019726,7]
[335579904,1724339458576,-500.0,0.00019726,7]
[335579905,1724339458586,-500.0,0.00019726,7]
[335579906,1724339458595,-500.0,0.00019726,7]
[335579907,1724339458605,-500.0,0.00019726,7]
[335579908,1724339458613,-500.0,0.00019726,7]
[335579909,1724339458623,-721.62,0.00019726,7]
[335579910,1724339458632,-500.0,0.00019726,7]
[335579911,1724339458641,-500.0,0.00019726,7]
[335579912,1724339458650,-505.1,0.00019726,7]
[335579913,1724339458660,-500.0,0.00019726,7]
[335579914,1724339458669,-555.17998753,0.00019726,7]
[335579915,1724339458680,-997.84,0.00019726,7]
[335579916,1724339458694,-500.0,0.00019726,7]
[335579917,1724339458707,-508.78,0.00019726,7]
[335579918,1724339458717,-750.8,0.00019726,7]
[335579919,1724339458727,-504.10580165,0.00019726,7]
[335579920,1724339458736,-500.0,0.00019726,7]
[335579921,1724339458746,-500.0,0.00019726,7]
[335579922,1724339458756,-200.15951786,0.00019726,7]
[335579923,1724339458766,-616.62,0.00019726,7]
[335579924,1724339458776,-500.0,0.00019726,7]
[335579925,1724339458785,-503.01,0.00019726,7]
[335579926,1724339458795,-500.0,0.00019726,7]
[335579927,1724339458804,-538.87,0.00019726,7]
[335579928,1724339458814,-500.0,0.00019726,7]
[335579929,1724339458825,-500.0,0.00019726,7]
[335579930,1724339458836,-700.96,0.00019726,7]
[335579931,1724339458847,-500.0,0.00019726,7]
[335579932,1724339458857,-500.0,0.00019726,7]
[335579933,1724339458867,-500.0,0.00019726,7]
[335579934,1724339458877,-812.56,0.00019726,7]
[335579935,1724339458887,-517.34045113,0.00019726,7]
[335579936,1724339458897,-593.73,0.00019726,7]
[335579937,1724339458907,-500.0,0.00019726,7]
[335579938,1724339458917,-534.86,0.00019726,7]
[335579939,1724339458928,-500.0,0.00019726,7]
[335579940,1724339458938,-500.0,0.00019726,7]
[335579941,1724339458949,-500.0,0.00019726,7]
[335579942,1724339458959,-500.0,0.00019726,7]
[335579943,1724339458969,-500.0,0.00019726,7]
[335579944,1724339458982,-500.0,0.00019726,7]
[335579945,1724339458993,-666.03,0.00019726,7]
[335579946,1724339459003,-500.0,0.00019726,7]
[335579947,1724339459013,-573.84,0.00019726,7]
[335579948,1724339459024,-500.0,0.00019726,7]
[335579949,1724339459036,-500.0,0.00019726,7]
[335579950,1724339459046,-500.0,0.00019726,7]
[335579951,1724339459058,-500.0,0.00019726,7]
[335579952,1724339459068,-500.0,0.00019726,7]
[335579953,1724339459077,-500.0,0.00019726,7]
[335579954,1724339459086,-500.0,0.00019726,7]
[335579955,1724339459095,-636.8,0.00019726,7]
[335579956,1724339459105,-500.0,0.00019726,7]
[335579957,1724339459114,-500.0,0.00019726,7]
[335579958,1724339459123,-500.0,0.00019726,7]
[335579959,1724339459132,-500.0,0.00019726,7]
[335579960,1724339459141,-500.0,0.00019726,7]
[335579961,1724339459151,-500.0,0.00019726,7]
[335579962,1724339459160,-540.42,0.00019726,7]
[335579963,1724339459170,-500.0,0.00019726,7]
[335579964,1724339459179,-354.75993501,0.00019726,7]
[335579965,1724339459189,-500.0,0.00019726,7]
[335579966,1724339459198,-500.0,0.00019726,7]
[335579967,1724339459207,-500.0,0.00019726,7]